bitfinex/quotes_SOLUSD_20220210
["timestamp","ask_amount","ask_price","bid_price","bid_amount"]
[1644500267257,37.5567534,109.09,108.89,0.44]
[1644500267458,48.26962298,109.07,108.87,2.56701564]
[1644500267655,48.26962298,109.07,108.87,3.00701564]
[1644500267856,2.23122154,109.06,108.87,2.56701564]
[1644500268061,6.81922154,109.06,108.87,2.56701564]
[1644500268356,61.07738879,109.05,108.87,2.56701564]
[1644500268559,34.8120724,109.03,108.89,0.44]
[1644500268758,34.8120724,109.03,108.89,11.11]
[1644500268959,34.8120724,109.03,108.91,0.44]
[1644500269155,34.8120724,109.03,108.91,11.11]
[1644500269356,34.3120724,109.03,108.91,10.92]
[1644500269559,34.3120724,109.03,108.87,2.56701564]
[1644500270257,21.978039,109.02,108.87,2.56701564]
[1644500270457,38.2781827,109.01,108.87,3.00701564]
[1644500270658,7.076925,109.0,108.87,2.56701564]
[1644500270858,46.91909046,108.99,108.87,2.56701564]
[1644500271058,7.076925,108.98,108.87,2.56701564]
[1644500271259,7.076925,108.98,108.77,0.44]
[1644500271260,7.37816944,108.98,108.77,10.67]
[1644500271461,6.30124444,108.98,108.77,10.67]
[1644500271660,2.23122154,108.97,108.78,0.44]
[1644500271863,2.23122154,108.97,108.8,0.44]
[1644500271864,8.48122154,108.97,108.8,0.44]
[1644500272059,6.25,108.97,108.81,0.44]
[1644500272284,47.61432644,108.96,108.81,0.44]
[1644500272460,47.61432644,108.96,108.83,0.44]
[1644500272666,53.61432644,108.96,108.81,10.67]
[1644500272860,53.61432644,108.96,108.77,0.44]
[1644500273061,55.84554798,108.96,108.76,4.591]
[1644500273364,53.61432644,108.96,108.81,0.44]
[1644500273565,53.61432644,108.96,108.82,0.44]
[1644500273762,53.61432644,108.96,108.81,10.67]
[1644500273961,13.61432644,108.96,108.82,31.59673741]
[1644500274260,13.61432644,108.96,108.81,10.11]
[1644500274461,0.32171713,108.91,108.74,4.591]
[1644500274663,2.23122154,108.95,108.7,4.593]
[1644500274863,8.743,108.91,108.73,0.45]
[1644500275062,10.84952847,108.9,108.73,0.45]
[1644500275264,38.05382109,108.89,108.7,28.90771301]
[1644500275463,38.05382109,108.89,108.7,39.57771301]
[1644500275662,38.30382109,108.89,108.7,39.57771301]
[1644500275864,38.30382109,108.89,108.71,4.595]
[1644500276063,38.30382109,108.89,108.72,17.69181276]
[1644500276263,38.30382109,108.89,108.73,4.595]
[1644500276463,38.30382109,108.89,108.74,28.90771301]
[1644500276664,38.30382109,108.89,108.74,39.57771301]
[1644500277064,38.05382109,108.89,108.74,39.57771301]
[1644500278365,6.3895014,108.89,108.76,35.75665748]
[1644500278566,12.3895014,108.89,108.76,35.75665748]
[1644500278967,13.7871,108.96,108.76,35.75665748]
[1644500279168,13.7871,108.96,108.76,46.42665748]
[1644500279169,6.0,108.89,108.76,46.42665748]
[1644500279369,4.593,108.99,108.76,46.42665748]
[1644500279669,0.3231795,108.96,108.76,35.75665748]
[1644500279890,10.67,108.95,108.76,35.75665748]
[1644500280090,18.3818,108.94,108.73,532.57594958]
[1644500280297,18.3818,108.94,108.65,23.4416]
[1644500280298,0.45,108.89,108.65,23.4416]
[1644500280592,0.30183276,108.84,108.58,7.0]
[1644500280791,15.269,108.83,108.58,7.0]
[1644500281093,45.30728545,108.82,108.59,53.13000186]
[1644500281293,51.30728545,108.82,108.59,42.46000186]
[1644500281491,6.0,108.82,108.6,4.599]
[1644500281693,10.67,108.92,108.61,129.0]
[1644500281890,4.599,108.96,108.62,77.5193]
[1644500282091,4.596,108.99,108.66,0.32081256]
[1644500282291,19.27400515,109.0,108.68,0.32013634]
[1644500282494,39.96051709,108.99,108.72,0.3214726]
[1644500282693,39.96051709,108.99,108.7,42.46000186]
[1644500282894,39.96051709,108.99,108.72,19.13384359]
[1644500283093,39.96051709,108.99,108.74,39.42969523]
[1644500283295,39.96051709,108.99,108.76,22.16415022]
[1644500283494,39.96051709,108.99,108.77,15.261]
[1644500283694,4.591,109.02,108.78,39.42969523]
[1644500283896,1.13186789,109.08,108.78,39.67969523]
[1644500283897,4.59,109.08,108.78,39.67969523]
[1644500284198,242.90660774,109.09,108.79,102.98]
[1644500284401,1.45084172,109.14,108.79,111.65725644]
[1644500284593,38.89266179,109.13,108.81,22.16415022]
[1644500284793,52.65606179,109.13,108.87,39.42969523]
[1644500284994,38.89266179,109.13,108.89,22.16415022]
[1644500285194,38.89266179,109.13,108.92,44.01]
[1644500285397,40.02452968,109.13,108.94,22.48011987]
[1644500285595,40.02452968,109.13,108.95,10.67]
[1644500285795,40.02452968,109.13,108.96,39.42969523]
[1644500285996,40.02452968,109.13,108.98,22.16415022]
[1644500286195,38.89266179,109.13,108.98,22.16415022]
[1644500286396,38.89266179,109.13,108.98,22.41415022]
[1644500286596,38.89266179,109.13,108.96,10.67]
[1644500286795,4.585,109.12,108.96,10.67]
[1644500286995,5.71686789,109.12,108.96,10.67]
[1644500287196,1.13186789,109.08,108.96,10.67]
[1644500287397,0.63186789,109.09,108.91,10.67]
[1644500287597,48.75632125,109.07,108.91,10.67]
[1644500288102,4.587,109.06,108.89,4.586]
[1644500288298,56.74267508,109.07,108.89,4.586]
[1644500288499,63.54672265,109.07,108.89,15.256]
[1644500288699,49.00632125,109.07,108.9,42.44646762]
[1644500289101,45.6153905,109.05,108.9,42.44646762]
[1644500289297,45.8882,109.12,108.9,53.11646762]
[1644500289499,18.04931277,109.11,108.91,4.586]
[1644500289699,5.49614249,109.19,108.91,4.586]
[1644500289700,15.194309,109.1,108.92,10.67]
[1644500289898,20.280309,109.15,108.92,10.67]
[1644500290098,15.694309,109.14,108.92,16.92]
[1644500290301,44.40196651,109.13,108.93,37.48887783]
[1644500290500,15.694309,109.12,108.94,10.67]
[1644500290703,57.93332878,109.11,108.95,42.44646762]
[1644500290901,57.93332878,109.11,108.95,53.11646762]
[1644500291100,57.93332878,109.11,108.95,53.36646762]
[1644500291101,15.694309,109.1,108.95,53.36646762]
[1644500291299,15.685712,109.09,108.96,4.586]
[1644500291501,15.685712,109.08,108.96,18.3383]
[1644500291704,15.685712,109.07,108.97,10.67]
[1644500291899,5.04614249,109.19,108.98,4.90176384]
[1644500291900,0.46014249,109.19,108.98,4.90176384]
[1644500292101,0.46014249,109.19,108.99,10.67]
[1644500292304,0.46014249,109.19,109.0,16.05675193]
[1644500292504,0.46014249,109.19,109.01,10.67]
[1644500292704,0.46014249,109.19,109.02,42.44646762]
[1644500292904,0.46014249,109.19,109.03,10.67]
[1644500293103,0.46014249,109.19,109.04,11.47375193]
[1644500293306,0.46014249,109.19,109.04,11.72375193]
[1644500294908,0.46014249,109.19,109.01,465.99050402]
[1644500295307,2.3531603,109.18,109.01,465.99050402]
[1644500295505,2.67357986,109.18,108.98,10.67]
[1644500295705,6.9361603,109.17,108.98,10.67]
[1644500295910,0.31206845,109.15,108.91,13.7595]
[1644500296208,4.585,109.14,108.89,71.7877]
[1644500296405,2.34918877,109.13,108.91,10.67]
[1644500296606,0.024,109.13,108.91,10.67]
[1644500297005,48.61724911,109.13,108.92,39.42796376]
[1644500297306,0.024,109.12,108.92,39.42796376]
[1644500297505,0.024,109.12,108.92,34.84196376]
[1644500297705,13.7643,109.11,108.92,34.84196376]
[1644500297907,47.67379205,109.1,108.92,34.84196376]
[1644500298308,2.009426,109.03,108.92,34.84196376]
[1644500298512,42.34464601,109.03,108.92,34.84196376]
[1644500298710,2.009426,109.03,108.92,45.51196376]
[1644500298910,0.024,109.1,109.04,6.600574]
[1644500299110,75.0,109.13,109.04,1e-08]
[1644500299311,13.7593,109.14,109.04,1e-08]
[1644500299514,4.583,109.18,109.04,1e-08]
[1644500299713,51.2897717,109.18,109.04,1e-08]
[1644500299914,18.3383,109.18,109.04,1e-08]
[1644500300113,19.31610383,109.17,109.04,1e-08]
[1644500300311,4.582,109.16,109.04,1e-08]
[1644500300515,87.72,109.15,109.04,1e-08]
[1644500300713,4.89118307,109.14,109.04,1e-08]
[1644500300911,98.39,109.13,109.04,1e-08]
[1644500301121,0.30568937,109.08,109.04,1e-08]
[1644500301312,0.30568937,109.08,108.82,495.8870542]
[1644500301313,0.30168684,109.06,108.82,495.8870542]
[1644500301518,0.32215432,109.02,108.82,495.8870542]
[1644500301715,4.613,109.05,108.81,95.067]
[1644500301913,0.024,109.01,108.81,13.7704]
[1644500302113,0.024,109.04,108.81,13.7704]
[1644500302315,13.7751,109.01,108.82,43.81900808]
[1644500302613,34.81403261,109.0,108.82,48.40900808]
[1644500302813,34.81403261,109.0,108.82,43.81900808]
[1644500303022,35.06403261,109.0,108.82,43.81900808]
[1644500304015,0.25,109.0,108.82,43.81900808]
[1644500304214,0.024,109.03,108.83,87.72]
[1644500304413,6.16120378,109.14,108.83,87.72]
[1644500304414,0.024,109.01,108.84,15.26]
[1644500304613,0.024,109.03,108.87,13.7661]
[1644500304814,88.02653633,109.07,108.84,4.59]
[1644500305014,53.58905891,109.06,108.85,10.60121147]
[1644500305217,0.31858264,109.03,108.85,10.60121147]
[1644500305415,0.31858264,109.03,108.8,24.0692]
[1644500305616,13.7809,108.96,108.7,53.4838]
[1644500305815,87.72,108.94,108.71,10.67]
[1644500306017,4.618,108.93,108.71,56.6119]
[1644500306220,0.024,108.92,108.71,56.6119]
[1644500306416,44.36716892,108.92,108.72,35.48053476]
[1644500306719,44.39116892,108.92,108.72,35.48053476]
[1644500306916,40.85814337,108.9,108.72,35.48053476]
[1644500307116,13.7898,108.89,108.72,35.48053476]
[1644500307316,38.06765613,108.88,108.7,13.7869]
[1644500307517,38.38473388,108.88,108.64,4.595]
[1644500307818,38.38473388,108.88,108.63,28.6201]
[1644500307819,0.31617803,108.83,108.63,28.6201]
[1644500308020,0.34017803,108.83,108.63,4.597]
[1644500308318,35.94632802,108.79,108.64,45.10641699]
[1644500308821,40.54532802,108.79,108.64,45.10641699]
[1644500309419,41.94632802,108.79,108.63,4.597]
[1644500309820,15.269,108.78,108.63,4.597]
[1644500310023,0.32241087,108.77,108.63,4.597]
[1644500310221,4.599,108.76,108.63,4.597]
[1644500310424,4.599,108.76,108.58,41.21610106]
[1644500310425,34.19939898,108.75,108.58,41.21610106]
[1644500310625,13.8108,108.74,108.58,41.21610106]
[1644500310822,47.50444628,108.73,108.58,41.21610106]
[1644500311424,47.75444628,108.73,108.58,41.21610106]
[1644500312621,47.75444628,108.73,108.58,47.21610106]
[1644500312820,47.75444628,108.73,108.58,41.21610106]
[1644500313226,2.23122154,108.72,108.58,41.21610106]
[1644500313427,36.82169863,108.71,108.58,41.21610106]
[1644500313653,13.811,108.72,108.58,41.21610106]
[1644500313851,0.024,108.79,108.58,41.21610106]
[1644500314052,0.024,108.79,108.59,4.6]
[1644500314251,0.30801289,108.88,108.59,15.27]
[1644500314252,2.23122154,108.82,108.59,15.27]
[1644500314454,0.024,108.84,108.6,9.41731463]
[1644500314652,0.024,108.81,108.62,13.20411849]
[1644500314852,0.024,108.83,108.64,40.19306621]
[1644500315152,2.23122154,108.81,108.64,40.19306621]
[1644500315352,37.69648597,108.8,108.64,40.44306621]
[1644500315552,37.69648597,108.8,108.64,46.44306621]
[1644500315753,43.69648597,108.8,108.64,46.44306621]
[1644500315952,37.69648597,108.8,108.64,46.19306621]
[1644500316762,37.69648597,108.8,108.7,387.99296725]
[1644500316959,37.69648597,108.8,108.71,14.22715334]
[1644500317155,43.69648597,108.8,108.7,387.99296725]
[1644500317355,2.23122154,108.79,108.63,13.7974]
[1644500317560,43.69648597,108.8,108.64,0.25]
[1644500317757,43.69648597,108.8,108.63,13.7974]
[1644500318156,43.94648597,108.8,108.64,39.12342968]
[1644500318555,2.23122154,108.79,108.64,39.12342968]
[1644500318757,46.37817865,108.78,108.64,39.12342968]
[1644500319757,2.23122154,108.77,108.64,39.12342968]
[1644500319958,39.75858754,108.76,108.64,39.12342968]
[1644500320559,40.00858754,108.76,108.64,39.12342968]
[1644500320758,39.75858754,108.76,108.64,39.12342968]
[1644500320960,13.8032,108.78,108.64,39.12342968]
[1644500321161,0.024,108.84,108.64,39.12342968]
[1644500321360,0.024,108.87,108.64,39.12342968]
[1644500321561,2.23122154,108.84,108.64,39.12342968]
[1644500321772,4.598,108.83,108.64,39.12342968]
[1644500321961,40.05680179,108.82,108.64,39.12342968]
[1644500322161,40.05680179,108.82,108.65,10.67]
[1644500322362,40.05680179,108.82,108.66,15.29678987]
[1644500322564,40.05680179,108.82,108.67,10.67]
[1644500322763,10.67,108.91,108.69,106.0]
[1644500322964,45.9803,108.88,108.7,40.81159845]
[1644500323167,34.81644425,108.87,108.7,40.81159845]
[1644500323367,34.81644425,108.87,108.7,41.06159845]
[1644500323664,35.86803193,108.85,108.7,41.06159845]
[1644500324169,2.23122154,108.91,108.71,24.458]
[1644500324370,4.595,108.98,108.72,4.594]
[1644500324572,34.60836807,108.99,108.72,4.594]
[1644500324573,2.23122154,108.97,108.73,10.67]
[1644500324768,4.593,109.04,108.75,88.03661865]
[1644500324966,43.22946087,109.03,108.78,0.30200603]
[1644500325167,13.7719,109.02,108.84,13.7719]
[1644500325369,34.19821324,109.01,108.85,36.73268551]
[1644500325767,40.19821324,109.01,108.85,47.65268551]
[1644500327767,42.42943478,109.01,108.85,47.65268551]
[1644500328167,40.19821324,109.01,108.85,47.65268551]
[1644500328769,40.19821324,109.01,108.86,13.7697]
[1644500329070,34.19821324,109.01,108.87,52.7696177]
[1644500329271,34.19821324,109.01,108.88,4.589]
[1644500329472,34.19821324,109.01,108.89,40.78180837]
[1644500329870,34.19821324,109.01,108.89,41.03180837]
[1644500330270,40.19821324,109.01,108.89,41.03180837]
[1644500330670,40.19821324,109.01,108.89,51.70180837]
[1644500330969,40.19821324,109.01,108.89,65.46700837]
[1644500330970,34.19821324,109.01,108.89,65.46700837]
[1644500331170,4.589,109.1,108.89,65.46700837]
[1644500331371,4.587,109.12,108.89,65.46700837]
[1644500331571,114.3,109.13,108.9,4.586]
[1644500331770,114.3,109.13,108.91,10.67]
[1644500332073,36.66745259,109.12,108.96,37.4020673]
[1644500332269,36.66745259,109.12,108.96,52.9070673]
[1644500332669,36.66745259,109.12,108.96,58.9070673]
[1644500332870,36.66745259,109.12,108.96,52.9070673]
[1644500333069,36.66745259,109.12,108.96,52.6570673]
[1644500333371,44.89867413,109.12,108.96,52.6570673]
[1644500333672,19.30670282,109.11,108.96,4.585]
[1644500333868,4.585,109.11,108.96,4.585]
[1644500334069,10.46908248,109.1,108.96,4.585]
[1644500334271,13.7668,109.06,108.96,4.585]
[1644500334470,42.67592143,109.05,108.96,48.53499868]
[1644500335371,42.67592143,109.05,108.96,44.19999868]
[1644500335574,42.67592143,109.05,108.96,43.94999868]
[1644500335772,42.67592143,109.05,108.93,10.67]
[1644500335971,42.67592143,109.05,108.93,10.92]
[1644500336171,34.1929,109.18,108.93,10.92]
[1644500336371,23.5229,109.18,108.94,4.583]
[1644500336571,13.7564,109.14,108.95,10.67]
[1644500336776,13.7564,109.14,108.95,10.92]
[1644500336973,2.23122154,109.13,108.95,10.67]
[1644500337179,39.57914331,109.12,108.96,46.07343129]
[1644500337674,39.82914331,109.12,108.96,46.07343129]
[1644500337872,48.06036485,109.12,108.96,46.07343129]
[1644500338273,48.06036485,109.12,108.96,46.32343129]
[1644500338674,48.06036485,109.12,108.96,46.07343129]
[1644500338874,48.06036485,109.12,108.93,24.4294]
[1644500338875,41.60134637,109.1,108.93,24.4294]
[1644500339078,41.60134637,109.1,108.89,36.4631]
[1644500339274,2.23122154,109.09,108.89,47.1331]
[1644500339476,2.25522154,109.09,108.89,47.1331]
[1644500339675,10.74308248,109.09,108.89,24.4326]
[1644500339878,45.67215721,109.08,108.9,46.07004588]
[1644500340076,45.8959,109.06,108.9,46.07004588]
[1644500340276,50.03943307,109.05,108.88,22.5124]
[1644500340476,58.27729401,109.05,108.88,22.5124]
[1644500340674,57.96597729,109.05,108.88,22.5124]
[1644500340875,49.72811635,109.05,108.88,22.5124]
[1644500341080,13.7688,109.04,108.88,22.5124]
[1644500341277,35.56221081,109.03,108.89,44.60670323]
[1644500341677,35.56221081,109.03,108.89,44.85670323]
[1644500341976,35.56221081,109.03,108.91,39.68036305]
[1644500342176,35.56221081,109.03,108.91,50.35036305]
[1644500342380,35.56221081,109.03,108.91,50.60036305]
[1644500342777,0.024,109.08,108.91,64.36266305]
[1644500342977,0.024,109.13,108.91,64.68291978]
[1644500343177,0.024,109.11,108.92,1.98546123]
[1644500343377,28.1099,109.18,108.95,0.31827991]
[1644500343378,0.024,109.12,108.95,0.31827991]
[1644500343578,2.23122154,109.18,108.96,10.67]
[1644500343579,0.024,109.17,108.96,10.67]
[1644500343778,41.57849628,109.17,108.97,18.00974939]
[1644500343977,0.024,109.16,108.98,10.98831957]
[1644500344179,55.33079628,109.17,109.01,13.7494]
[1644500344377,0.024,109.16,109.02,35.74552745]
[1644500344578,41.55449628,109.17,108.96,15.253]
[1644500344779,4.607,109.16,108.95,487.91470112]
[1644500344983,11.25109132,109.15,108.95,487.91470112]
[1644500345180,0.024,109.14,108.95,487.91470112]
[1644500345379,13.7606,109.1,108.95,501.67230112]
[1644500345579,2.23122154,109.14,108.97,87.72]
[1644500345783,0.024,109.12,108.98,15.253]
[1644500345981,6.024,109.15,108.98,102.973]
[1644500346182,0.024,109.14,108.98,108.973]
[1644500346382,6.0,109.15,108.99,1.98546123]
[1644500346583,34.36763524,109.18,109.0,36.34036769]
[1644500346783,47.28130283,109.14,109.01,13.7503]
[1644500346984,13.7521,109.17,109.02,34.37548944]
[1644500347183,6.0,109.18,109.02,34.37548944]
[1644500347403,6.0,109.18,109.03,4.582]
[1644500347802,15.98162154,109.18,109.03,4.582]
[1644500348001,39.99034471,109.17,109.04,48.22630855]
[1644500348807,40.24034471,109.17,109.03,4.582]
[1644500349007,13.7528,109.16,109.03,4.582]
[1644500349203,0.32223511,109.15,108.96,10.67]
[1644500349407,0.30134537,109.11,108.91,73.9632]
[1644500349608,4.90026769,109.1,108.9,47.2013]
[1644500349803,0.30917601,109.05,108.89,39.28266663]
[1644500350211,44.54582513,109.04,108.89,39.28266663]
[1644500350804,44.54582513,109.04,108.89,41.26812786]
[1644500351004,44.54582513,109.04,108.91,47.20098343]
[1644500351205,4.612,109.12,108.92,13.7619]
[1644500351404,0.024,109.1,108.93,75.0647]
[1644500351612,0.024,109.11,108.93,75.0647]
[1644500351804,0.024,109.14,108.93,75.3147]
[1644500352011,0.024,109.15,108.94,4.585]
[1644500352204,2.25522154,109.13,108.95,53.91655886]
[1644500352410,37.05623765,109.12,108.97,13.7561]
[1644500352603,37.05623765,109.12,108.98,41.78839878]
[1644500353006,2.23122154,109.13,108.98,41.78839878]
[1644500353204,0.024,109.15,108.99,10.67]
[1644500353406,0.0013498,109.17,109.0,44.01]
[1644500353605,0.024,109.16,109.01,15.57585838]
[1644500353807,0.46014249,109.19,109.01,39.81941232]
[1644500354006,0.00672227,109.26,109.07,133.36]
[1644500354205,0.49855306,109.3,109.13,129.0]
[1644500354407,19.43320378,109.41,109.18,0.31066352]
[1644500354607,13.722,109.41,109.2,0.32383683]
[1644500354906,0.45,109.39,109.19,6.0]
[1644500355107,139.923632,109.38,109.2,36.2602537]
[1644500355312,163.22494134,109.37,109.2,36.2602537]
[1644500355513,45.86554534,109.37,109.2,36.5102537]
[1644500356008,45.86554534,109.37,109.22,46.56004107]
[1644500356407,114.3,109.36,109.22,46.56004107]
[1644500356607,38.76514981,109.35,109.22,46.56004107]
[1644500356815,38.76514981,109.35,109.17,10.67]
[1644500357015,0.32121392,109.34,109.17,10.67]
[1644500357210,38.76514981,109.35,109.17,4.0031111]
[1644500357409,38.76514981,109.35,109.18,92.295]
[1644500357615,38.76514981,109.35,109.23,13.7233]
[1644500357816,38.76514981,109.35,109.24,45.85741917]
[1644500358410,114.3,109.36,109.24,46.10741917]
[1644500358610,114.3,109.36,109.25,10.67]
[1644500358810,114.3,109.36,109.25,10.92]
[1644500359416,158.05202537,109.36,109.28,13.7179]
[1644500359617,114.3,109.36,109.26,45.26182237]
[1644500359817,114.3,109.36,109.26,45.51182237]
[1644500360017,114.3,109.36,109.26,60.75582237]
[1644500360216,189.6,109.49,109.26,60.75582237]
[1644500360419,9.224276,109.48,109.26,56.18182237]
[1644500360714,41.91015453,109.47,109.26,56.18182237]
[1644500360913,41.91015453,109.47,109.27,4.571]
[1644500361114,47.91015453,109.47,109.28,38.65792892]
[1644500361313,61.62525453,109.47,109.29,13.715]
[1644500361513,61.62525453,109.47,109.3,42.81225657]
[1644500361716,55.62525453,109.47,109.3,42.81225657]
[1644500361914,55.62525453,109.47,109.3,43.06225657]
[1644500362419,44.90323666,109.45,109.3,43.06225657]
[1644500362618,58.61993666,109.45,109.27,13.7163]
[1644500362822,0.30874811,109.42,109.24,359.8154755]
[1644500363018,0.30874811,109.42,109.23,81.3671]
[1644500363217,6.80422154,109.41,109.23,81.3671]
[1644500363418,2.23122154,109.41,109.23,81.3671]
[1644500363617,48.2490193,109.4,109.24,38.55227534]
[1644500363817,13.7248,109.39,109.23,4.571]
[1644500364017,25.64609668,109.38,109.23,4.571]
[1644500364218,0.31644848,109.34,109.23,4.571]
[1644500364422,0.31644848,109.34,109.22,24.7663]
[1644500364618,0.31644848,109.34,109.12,10.67]
[1644500364818,6.30822154,109.33,109.08,95.1644]
[1644500365018,38.91060761,109.32,109.15,39.83922717]
[1644500365219,13.7363,109.3,109.15,39.83922717]
[1644500365418,43.6737236,109.29,109.15,39.83922717]
[1644500365819,43.9237236,109.29,109.15,39.83922717]
[1644500366920,43.6737236,109.29,109.15,39.83922717]
[1644500367119,43.6737236,109.29,109.17,42.51706211]
[1644500368521,43.6737236,109.29,109.13,10.67]
[1644500368722,43.6737236,109.29,109.1,15.247]
[1644500369022,0.31260071,109.26,109.1,10.67]
[1644500369221,0.31260071,109.26,109.08,95.1644]
[1644500369422,0.31260071,109.26,109.09,34.73041817]
[1644500369622,13.742,109.25,109.09,34.73041817]
[1644500369823,43.70537479,109.24,109.09,34.73041817]
[1644500370023,4.58,109.23,109.09,34.73041817]
[1644500370222,4.58,109.23,109.08,22.7531]
[1644500370223,47.17190802,109.22,109.08,22.7531]
[1644500370626,13.747,109.21,109.08,22.7531]
[1644500370823,0.25,109.21,109.08,22.7531]
[1644500371023,47.17190802,109.22,109.08,22.7531]
[1644500371223,0.30149213,109.21,109.09,43.27597392]
[1644500371424,47.17190802,109.22,109.09,43.27597392]
[1644500371625,49.40312956,109.22,109.09,43.27597392]
[1644500371926,47.17190802,109.22,109.09,43.27597392]
[1644500372523,47.17190802,109.22,109.09,43.52597392]
[1644500373024,53.17190802,109.22,109.09,43.27597392]
[1644500373827,42.38716513,109.2,109.09,43.27597392]
[1644500374024,13.7522,109.17,109.04,4.58]
[1644500374424,0.30901525,109.14,109.04,4.58]
[1644500374824,0.30901525,109.14,108.93,88.2088]
[1644500375024,41.71376596,109.16,108.95,51.57074743]
[1644500375226,52.98604442,109.16,108.97,39.2260351]
[1644500375425,55.21726596,109.16,108.98,10.67]
[1644500375625,52.98604442,109.16,109.0,41.46013208]
[1644500375828,52.98604442,109.16,109.0,41.71013208]
[1644500376326,4.583,109.22,109.01,94.25781403]
[1644500376529,4.583,109.22,109.02,10.67]
[1644500376728,2.23122154,109.27,109.03,4.90538765]
[1644500377026,2.23122154,109.27,109.02,12.62481403]
[1644500377027,2.23122154,109.27,109.04,87.9757]
[1644500377227,36.07607875,109.26,109.09,34.31638952]
[1644500377628,47.5273303,109.23,109.09,34.56638952]
[1644500377927,47.5273303,109.23,109.11,39.91292613]
[1644500378329,47.5273303,109.23,109.11,40.16292613]
[1644500378529,4.58,109.32,109.11,40.16292613]
[1644500378827,13.7393,109.27,109.12,13.7369]
[1644500379027,18.284396,109.26,109.12,13.7369]
[1644500379230,45.7863,109.32,109.12,24.6569]
[1644500379431,87.478152,109.31,109.12,112.3769]
[1644500379628,43.86043242,109.3,109.18,13.73]
[1644500379830,43.86043242,109.3,109.19,43.35742819]
[1644500380232,43.86043242,109.3,109.19,43.60742819]
[1644500380430,43.86043242,109.3,109.19,43.35742819]
[1644500380631,49.86043242,109.3,109.19,43.35742819]
[1644500381057,2.23122154,109.29,109.19,43.35742819]
[1644500381234,2.23122154,109.29,109.13,76.8189]
[1644500381435,2.23122154,109.29,109.08,10.67]
[1644500381636,0.31268307,109.25,109.07,430.38126839]
[1644500381837,6.81022154,109.29,109.07,434.96126839]
[1644500381838,2.23122154,109.29,109.07,434.96126839]
[1644500382035,49.86043242,109.3,109.08,10.67]
[1644500382237,54.72537674,109.28,109.13,13.7358]
[1644500382440,54.72537674,109.28,109.14,36.21895814]
[1644500382841,2.23122154,109.27,109.08,4.578]
[1644500383040,4.579,109.26,109.07,430.38126839]
[1644500383242,12.90122154,109.27,109.06,23.1373]
[1644500383446,12.90122154,109.27,109.05,24.3885]
[1644500383447,13.742,109.24,109.05,24.3885]
[1644500383643,0.30251946,109.22,109.05,24.3885]
[1644500383842,0.30251946,109.22,109.06,46.12700855]
[1644500383843,4.581,109.21,109.06,46.12700855]
[1644500384045,39.77718822,109.2,109.06,46.12700855]
[1644500384245,4.581,109.19,109.06,46.12700855]
[1644500384446,40.69444165,109.18,109.06,46.12700855]
[1644500384647,42.92566319,109.18,109.05,24.3885]
[1644500384845,43.17566319,109.18,109.05,24.3885]
[1644500385045,13.7553,109.14,109.05,24.3885]
[1644500385245,51.30265467,109.18,109.05,24.3885]
[1644500385448,40.38265467,109.18,109.05,24.3885]
[1644500385647,39.88265467,109.18,109.06,44.50796367]
[1644500386245,45.88265467,109.18,109.06,44.50796367]
[1644500386445,13.7507,109.17,109.06,44.50796367]
[1644500386647,46.69671412,109.16,109.0,10.67]
[1644500386845,46.69671412,109.16,109.0,0.25]
[1644500387046,46.94671412,109.16,108.98,77.1712]
[1644500387247,57.61671412,109.16,108.98,77.1712]
[1644500387447,57.61671412,109.16,108.98,87.8412]
[1644500387647,57.61671412,109.16,108.99,43.36077934]
[1644500388148,47.57464556,109.12,108.99,43.36077934]
[1644500388449,47.82464556,109.12,108.99,43.36077934]
[1644500389061,61.58194556,109.12,108.99,43.36077934]
[1644500389262,61.58194556,109.12,108.94,82.94539819]
[1644500389462,72.5768913,109.12,108.93,4.583]
[1644500389662,46.19207239,109.08,108.93,4.583]
[1644500389865,46.44207239,109.08,108.93,4.583]
[1644500390072,52.44207239,109.08,108.93,4.583]
[1644500390363,36.51833979,109.07,108.94,50.06171853]
[1644500390765,36.76833979,109.07,108.94,50.06171853]
[1644500391164,36.76833979,109.07,108.94,36.30041853]
[1644500392865,13.7637,109.06,108.94,36.30041853]